fUSD/lending_fUSD_20240501
["ID","MTS","AMOUNT","RATE_DAILY","PERIOD"]
[325207876,1714587046775,-10574.10482839,0.0001788,2]
[325207878,1714587046784,-167.0,0.00017921,2]
[325207880,1714587046794,-414.22,0.00017951,2]
[325207882,1714587046804,-414.22,0.00017951,2]
[325207884,1714587046813,-414.22,0.00017951,2]
[325207886,1714587046823,-151.0,0.00017996,2]
[325207888,1714587046833,-162.97,0.0001804,2]
[325207890,1714587046843,-3384.2029263,0.00018067,2]
[325207892,1714587046852,-151.0,0.00018067,2]
[325207894,1714587046862,-151.0,0.00018067,2]
[325207896,1714587046871,-4065.372396,0.00018067,2]
[325207898,1714587046880,-151.0,0.00018067,2]
[325207900,1714587046890,-267.021309,0.00018067,2]
[325207902,1714587046899,-267.021309,0.00018067,2]
[325207904,1714587046910,-4065.372396,0.00018067,2]
[325207906,1714587046919,-151.0,0.00018067,2]
[325207908,1714587046929,-602.583613,0.00018079,2]
[325207910,1714587046939,-576.194324,0.00018079,2]
[325207912,1714587046948,-1152.388648,0.00018079,2]
[325207914,1714587046957,-380.665587,0.00018082,2]
[325207916,1714587046966,-602.583613,0.00018297,2]
[325207918,1714587046975,-576.194324,0.00018297,2]
[325207920,1714587046983,-1152.388648,0.00018297,2]
[325207922,1714587046993,-151.0,0.00018297,2]
[325207924,1714587047002,-151.0,0.00018297,2]
[325207926,1714587047011,-151.0,0.00018297,2]
[325207928,1714587047020,-151.0,0.00018297,2]
[325207930,1714587047030,-151.0,0.00018297,2]
[325207932,1714587047039,-151.0,0.00018297,2]
[325207933,1714587047048,-151.0,0.00018297,2]
[325207935,1714587047057,-167.0,0.00018444,2]
[325207938,1714587047067,-4213.09,0.00018533,2]
[325207940,1714587047077,-179.64565894,0.00018847,2]
[325207942,1714587047086,-380.665587,0.00018904,2]
[325207944,1714587047095,-23369.934594,0.00019,5]
[325207946,1714587047104,-151.0,0.00019,2]
[325207948,1714587047112,-151.0,0.00019,2]
[325207950,1714587047122,-151.0,0.00019,2]
[325207952,1714587047131,-151.0,0.00019,2]
[325207954,1714587047140,-151.0,0.00019,2]
[325207956,1714587047149,-289.406349,0.00019,2]
[325207958,1714587047158,-289.406349,0.00019,2]
[325207960,1714587047170,-500.0,0.00019178,2]
[325207962,1714587047179,-500.0,0.00019178,2]
[325207964,1714587047188,-500.0,0.00019178,2]
[325207966,1714587047197,-500.0,0.00019178,2]
[325207968,1714587047206,-500.0,0.00019178,2]
[325207970,1714587047215,-500.0,0.00019178,2]
[325207972,1714587047225,-500.0,0.00019178,2]
[325207974,1714587047234,-500.0,0.00019178,2]
[325207976,1714587047244,-500.0,0.00019178,2]
[325207977,1714587047252,-500.0,0.00019178,2]
[325207980,1714587047263,-500.0,0.00019178,2]
[325207982,1714587047272,-500.0,0.00019178,2]
[325207984,1714587047281,-500.0,0.00019178,2]
[325207986,1714587047290,-500.0,0.00019178,2]
[325207988,1714587047299,-500.0,0.00019178,2]
[325207990,1714587047309,-500.0,0.00019178,2]
[325207992,1714587047318,-500.0,0.00019178,2]
[325207994,1714587047327,-500.0,0.00019178,2]
[325207996,1714587047337,-500.0,0.00019178,2]
[325207998,1714587047351,-500.0,0.00019178,2]
[325208000,1714587047361,-500.0,0.00019178,2]
[325208002,1714587047370,-500.0,0.00019178,2]
[325208004,1714587047380,-500.0,0.00019178,2]
[325208006,1714587047389,-500.0,0.00019178,2]
[325208008,1714587047399,-500.0,0.00019178,2]
[325208010,1714587047408,-500.0,0.00019178,2]
[325208012,1714587047418,-500.0,0.00019178,2]
[325208014,1714587047430,-151.0,0.00019178,2]
[325208016,1714587047440,-500.0,0.00019178,2]
[325208018,1714587047450,-500.0,0.00019178,2]
[325208020,1714587047459,-500.0,0.00019178,2]
[325208022,1714587047468,-500.0,0.00019178,2]
[325208024,1714587047477,-500.0,0.00019178,2]
[325208026,1714587047486,-500.0,0.00019178,2]
[325208028,1714587047495,-500.0,0.00019178,2]
[325208030,1714587047504,-500.0,0.00019178,2]
[325208032,1714587047513,-500.0,0.00019178,2]
[325208034,1714587047521,-500.0,0.00019178,2]
[325208036,1714587047530,-500.0,0.00019178,2]
[325208038,1714587047539,-500.0,0.00019178,2]
[325208040,1714587047548,-500.0,0.00019178,2]
[325208042,1714587047556,-500.0,0.00019178,2]
[325208044,1714587047565,-500.0,0.00019178,2]
[325208046,1714587047574,-500.0,0.00019178,2]
[325208048,1714587047583,-500.0,0.00019178,2]
[325208050,1714587047591,-500.0,0.00019178,2]
[325208052,1714587047600,-500.0,0.00019178,2]
[325208054,1714587047609,-500.0,0.00019178,2]
[325208056,1714587047618,-500.0,0.00019178,2]
[325208058,1714587047627,-500.0,0.00019178,2]
[325208060,1714587047635,-500.0,0.00019178,2]
[325208062,1714587047644,-500.0,0.00019178,2]
[325208064,1714587047652,-500.0,0.00019178,2]
[325208066,1714587047661,-500.0,0.00019178,2]
[325208068,1714587047672,-197.609375,0.00019178,2]
[325208070,1714587047681,-500.0,0.00019178,2]
[325208072,1714587047690,-500.0,0.00019178,2]
[325208074,1714587047699,-500.0,0.00019178,2]
[325208076,1714587047708,-500.0,0.00019178,2]
[325208078,1714587047717,-500.0,0.00019178,2]
[325208080,1714587047726,-500.0,0.00019178,2]
[325208082,1714587047735,-500.0,0.00019178,2]
[325208084,1714587047744,-500.0,0.00019178,2]
[325208085,1714587047753,-500.0,0.00019178,2]
[325208087,1714587047762,-500.0,0.00019178,2]
[325208090,1714587047771,-197.609375,0.00019178,2]
[325208092,1714587047781,-183.380633,0.00019178,2]
[325208094,1714587047789,-500.0,0.00019178,2]
[325208096,1714587047802,-183.380633,0.00019178,2]
[325208098,1714587047811,-500.0,0.00019178,2]
[325208100,1714587047821,-500.0,0.00019178,2]
[325208101,1714587047830,-500.0,0.00019178,2]
[325208102,1714587047839,-500.0,0.00019178,2]
[325208103,1714587047848,-500.0,0.00019178,2]
[325208104,1714587047857,-500.0,0.00019178,2]
[325208105,1714587047866,-500.0,0.00019178,2]
[325208106,1714587047875,-500.0,0.00019178,2]
[325208107,1714587047884,-500.0,0.00019178,2]
[325208108,1714587047892,-500.0,0.00019178,2]
[325208109,1714587047902,-500.0,0.00019178,2]
[325208110,1714587047911,-500.0,0.00019178,2]
[325208111,1714587047923,-500.0,0.00019178,2]
[325208112,1714587047933,-500.0,0.00019178,2]
[325208113,1714587047942,-500.0,0.00019178,2]
[325208114,1714587047951,-500.0,0.00019178,2]
[325208115,1714587047960,-500.0,0.00019178,2]
[325208116,1714587047969,-500.0,0.00019178,2]
[325208117,1714587047978,-151.0,0.00019178,2]
[325208118,1714587047987,-151.0,0.00019178,2]
[325208119,1714587047996,-608.27462205,0.00019178,2]
[325208120,1714587048005,-500.0,0.00019178,2]
[325208121,1714587048014,-474.12094835,0.00019178,2]
[325208122,1714587048023,-500.0,0.00019178,2]
[325208123,1714587048032,-151.0,0.00019178,2]
[325208124,1714587048041,-151.0,0.00019178,2]
[325208125,1714587048051,-151.0,0.00019178,2]
[325208126,1714587048060,-179.608126,0.00019178,2]
[325208127,1714587048069,-151.0,0.00019178,2]
[325208128,1714587048078,-151.0,0.00019178,2]
[325208129,1714587048088,-151.0,0.00019178,2]
[325208130,1714587048097,-151.0,0.00019178,2]
[325208131,1714587048106,-151.0,0.00019178,2]
[325208132,1714587048116,-166.041233,0.00019178,2]
[325208133,1714587048125,-151.0,0.00019178,2]
[325208134,1714587048135,-151.0,0.00019178,2]
[325208135,1714587048145,-166.041233,0.00019178,2]
[325208136,1714587048155,-204.9148,0.00019178,2]
[325208137,1714587048165,-266.423967,0.00019178,2]
[325208138,1714587048178,-204.9148,0.00019178,2]
[325208139,1714587048187,-266.610002,0.00019178,2]
[325208140,1714587048197,-466.657776,0.00019178,2]
[325208141,1714587048207,-466.657776,0.00019178,2]
[325208142,1714587048216,-151.0,0.00019178,2]
[325208143,1714587048226,-151.0,0.00019178,2]
[325208145,1714587048235,-151.0,0.00019178,2]
[325208147,1714587048245,-151.0,0.00019178,2]
[325208148,1714587048254,-4000.0,0.00019178,2]
[325208149,1714587048264,-179.2244514,0.00019304,2]
[325208150,1714587048274,-224.69,0.000194,2]
[325208151,1714587048283,-238.09,0.000194,2]
[325208152,1714587048293,-269.3,0.000194,2]
[325208153,1714587048303,-166.84086599,0.00019492,2]
[325208154,1714587048312,-179.64565894,0.0001959,2]
[325208155,1714587048322,-346.05149233,0.00019774,2]
[325208156,1714587048333,-153.74346247,0.00019801,2]
[325208157,1714587048343,-346.05149233,0.00019802,2]
[325208158,1714587048354,-520.32,0.00019806,2]
[325208159,1714587048364,-216.59,0.00019806,2]
[325208160,1714587048373,-151.0,0.00019845,2]
[325208161,1714587048382,-151.0,0.00019845,2]
[325208162,1714587048391,-151.0,0.00019845,2]
[325208163,1714587048401,-3358.56,0.00019846,15]
[325208164,1714587048410,-157.16515828,0.000199,2]
[325208165,1714587048423,-194.00301164,0.00019999,2]
[325208166,1714587048433,-50000.0,0.0002,2]
[325208167,1714587048442,-2416.11859842,0.0002,2]
[325208168,1714587048452,-195.58230746,0.0002,2]
[325208169,1714587048461,-155.0,0.0002,2]
[325208170,1714587048471,-9830.23534562,0.0002,2]
[325208171,1714587048484,-100.40924549,0.0002,2]
[325208172,1714587048493,-1651.00918815,0.0002,2]
[325208173,1714587048503,-358.06175097,0.0002,2]
[325208174,1714587048513,-11947.93787147,0.0002,2]
[325208175,1714587048522,-173.10512213,0.0002,2]
[325208176,1714587048531,-626.26256473,0.0002,2]
[325208177,1714587048540,-1768.2555451,0.0002,2]
[325208178,1714587048550,-1128.24068226,0.0002,2]
[325208179,1714587048561,-1599.77159946,0.0002,2]
[325208180,1714587048590,-1199.40594937,0.0002,2]
[325208181,1714587048602,-1311.13456538,0.0002,2]
[325208182,1714587049138,-150.3,0.00014,2]
[325208183,1714587049148,-150.3,0.00014,2]
[325208184,1714587049157,-28.1241325,0.00014,2]
[325208185,1714587049212,-1434.276,0.00012099,2]
[325208186,1714587049223,-385.27286744,0.00012099,2]
[325208187,1714587049235,-887.92984456,0.00012099,2]
[325208188,1714587049246,-467.26280354,0.00012099,2]
[325208189,1714587049282,-1016.69280864,0.00012099,2]
[325208190,1714587049293,-96.23296207,0.00014,2]
[325208191,1714587049305,-25.94290543,0.00014,2]
[325208192,1714587049314,-150.3,0.00014,2]
[325208193,1714587049323,-150.3,0.00014,2]
[325208194,1714587049334,-150.3,0.00014,2]
[325208195,1714587049347,-150.3,0.00014,2]
[325208196,1714587049356,-150.3,0.00014,2]
[325208197,1714587049365,-150.3,0.00014,2]
[325208198,1714587049374,-150.3,0.00014,2]
[325208199,1714587049385,-150.3,0.00014,2]
[325208200,1714587049394,-150.3,0.00014,2]
[325208201,1714587049403,-150.3,0.00014,2]
[325208202,1714587049413,-150.3,0.00014,2]
[325208203,1714587049427,-150.3,0.00014,2]
[325208204,1714587049438,-150.3,0.00014,2]
[325208205,1714587049447,-150.3,0.00014,2]
[325208206,1714587049457,-150.3,0.00014,2]
[325208207,1714587049466,-944.02897683,0.0002,2]
[325208208,1714587049476,-357.45923016,0.0002,30]
[325208209,1714587049486,-155.0,0.0002,2]
[325208210,1714587049495,-175.93183996,0.0002,2]
[325208211,1714587049506,-755.73757,0.0002,2]
[325208212,1714587049515,-188.79757151,0.0002009,2]
[325208213,1714587049525,-15040.26373822,0.00020265,2]
[325208214,1714587049589,-150.3,0.00014,2]
[325208215,1714587049599,-150.3,0.00014,2]
[325208216,1714587049608,-15617.93930526,0.00020265,2]
[325208217,1714587049620,-6591.20211387,0.00020265,2]
[325208218,1714587049631,-13083.34093263,0.00020265,2]
[325208219,1714587049643,-469.17317706,0.00020265,2]
[325208220,1714587049654,-4042.01,0.00020265,2]
[325208221,1714587051652,-150.3,0.00014,2]
[325208222,1714587051662,-150.3,0.00014,2]
[325208223,1714587051676,-150.3,0.00014,2]
[325208224,1714587051686,-150.3,0.00014,2]
[325208225,1714587051696,-150.3,0.00014,2]
[325208226,1714587051706,-150.3,0.00014,2]
[325208227,1714587051715,-150.3,0.00014,2]
[325208228,1714587051725,-150.3,0.00014,2]
[325208229,1714587051735,-150.3,0.00014,2]
[325208230,1714587051746,-150.3,0.0001455,2]
[325208231,1714587051756,-150.3,0.00014558,2]
[325208232,1714587051766,-150.3,0.00014726,2]
[325208233,1714587051776,-150.3,0.00014736,2]
[325208234,1714587051786,-150.3,0.00014746,2]
[325208235,1714587051796,-150.3,0.00014746,2]
[325208236,1714587051806,-150.3,0.0001587,2]
[325208237,1714587051816,-150.3,0.0001587,2]
[325208238,1714587051826,-150.3,0.0001587,2]
[325208239,1714587051835,-150.3,0.0001587,2]
[325208240,1714587051846,-150.3,0.0001587,2]
[325208241,1714587051857,-150.3,0.0001587,2]
[325208242,1714587051867,-150.3,0.0001587,2]
[325208243,1714587051877,-150.3,0.0001587,2]
[325208244,1714587051886,-150.3,0.0001587,2]
[325208245,1714587051896,-4089.63643903,0.00020265,2]
[325208246,1714587051906,-346.05149233,0.00020396,2]
[325208247,1714587051915,-150.0,0.000205,2]
[325208248,1714587051929,-346.05149233,0.00020553,2]
[325208249,1714587051939,-2298.0,0.00020559,2]
[325208250,1714587051948,-542.0,0.00020559,2]
[325208251,1714587051958,-1258.0,0.00020559,2]
[325208252,1714587051967,-1227.0,0.00020559,2]
[325208253,1714587051977,-567.427,0.0002056,2]
[325208254,1714587051986,-808.0,0.0002056,2]
[325208255,1714587051995,-208.0,0.0002056,2]
[325208256,1714587052006,-437.0,0.0002056,2]
[325208257,1714587052015,-610.0,0.0002056,2]
[325208258,1714587052025,-1476.0,0.0002056,2]
[325208259,1714587052035,-2448.0,0.0002056,2]
[325208260,1714587052045,-421.0,0.0002056,2]
[325208261,1714587052055,-3133.0,0.0002056,2]
[325208262,1714587052065,-444.0,0.0002056,2]
[325208263,1714587052074,-215.0,0.0002056,2]
[325208264,1714587052084,-150.0,0.0002056,2]
[325208265,1714587052094,-1643.0,0.0002056,2]
[325208266,1714587052104,-1139.0,0.0002056,2]
[325208267,1714587052113,-1454.51950831,0.00020568,2]
[325208268,1714587053355,-150.3,0.0001587,2]
[325208269,1714587053365,-150.3,0.0001587,2]
[325208270,1714587053374,-300.0,0.00020568,2]
[325208271,1714587053388,-537.48049169,0.00020568,2]
[325208272,1714587053398,-5178.24000028,0.00020568,2]
[325208273,1714587053410,-565.8,0.00020568,2]
[325208274,1714587053443,-20892.179115,0.00020568,2]
[325208275,1714587053454,-6747.37690241,0.00020568,2]
[325208276,1714587053466,-4360.40398231,0.00020568,2]
[325208277,1714587053475,-5899.0,0.00020568,2]
[325208278,1714587053484,-5737.0,0.00020568,2]
[325208279,1714587053494,-1057.0,0.00020568,2]
[325208280,1714587053503,-150.0,0.00020699,2]
[325208281,1714587053512,-150.0,0.00020699,2]
[325208282,1714587053523,-150.0,0.00020699,2]
[325208283,1714587053532,-150.0,0.00020699,2]
[325208284,1714587053541,-150.0,0.00020699,2]
[325208285,1714587053551,-150.0,0.00020699,2]
[325208286,1714587053561,-1395.0,0.00020699,2]
[325208287,1714587053570,-970.0,0.00020699,2]
[325208288,1714587053579,-462.0,0.00020699,2]
[325208289,1714587053589,-346.05149233,0.00020729,2]
[325208290,1714587053599,-10574.10482839,0.00020777,2]
[325208291,1714587053608,-151.0,0.00020777,2]
[325208292,1714587053618,-151.0,0.00020777,2]
[325208293,1714587053628,-4065.372396,0.00020777,2]
[325208294,1714587053638,-267.021309,0.00020777,2]
[325208295,1714587053647,-267.021309,0.00020777,2]
[325208296,1714587053656,-4065.372396,0.00020777,2]
[325208297,1714587053667,-29084.11660479,0.00020778,2]
[325208298,1714587053678,-151.0,0.00020838,2]
[325208299,1714587053687,-151.0,0.00020838,2]
[325208300,1714587053698,-151.0,0.00020838,2]
[325208301,1714587053708,-151.0,0.00020838,2]
[325208302,1714587053718,-151.0,0.00020838,2]
[325208303,1714587053727,-151.0,0.00020838,2]
[325208304,1714587053739,-151.0,0.00020838,2]
[325208305,1714587053748,-151.0,0.00020838,2]
[325208306,1714587053758,-217.70592129,0.00020845,2]
[325208307,1714587053767,-155.0,0.000209,2]
[325208308,1714587053777,-151.0,0.000209,2]
[325208309,1714587053787,-1968.97395031,0.000209,2]
[325208310,1714587053796,-346.05149233,0.00020923,2]
[325208311,1714587053805,-346.05149233,0.00020941,2]
[325208312,1714587053815,-197.609375,0.00020986,2]
[325208313,1714587053824,-197.609375,0.00020986,2]
[325208314,1714587053833,-183.380633,0.00020986,2]
[325208315,1714587053843,-183.380633,0.00020986,2]
[325208316,1714587053852,-151.0,0.00020986,2]
[325208317,1714587053861,-151.0,0.00020986,2]
[325208318,1714587053870,-3569.5809888,0.00020986,2]
[325208319,1714587053879,-151.0,0.00020986,2]
[325208320,1714587053888,-151.0,0.00020986,2]
[325208321,1714587053898,-151.0,0.00020986,2]
[325208322,1714587053907,-166.041233,0.00020986,2]
[325208323,1714587053917,-151.0,0.00020986,2]
[325208324,1714587053930,-171.65392,0.00020986,2]
[325208325,1714587053941,-166.041233,0.00020986,2]
[325208326,1714587053952,-204.9148,0.00020986,2]
[325208327,1714587053961,-204.9148,0.00020986,2]
[325208328,1714587053971,-6324.4356067,0.00020986,2]
[325208329,1714587053980,-466.657776,0.00020986,2]
[325208330,1714587053989,-466.657776,0.00020986,2]
[325208331,1714587053999,-151.0,0.00020986,2]
[325208332,1714587054008,-151.0,0.00020986,2]
[325208333,1714587054018,-151.0,0.00020986,2]
[325208334,1714587054028,-11892.5379099,0.00020986,2]
[325208335,1714587054038,-1815.8214009,0.00020986,2]
[325208336,1714587054047,-151.0,0.00020986,2]
[325208337,1714587054056,-3685.2598479,0.00020986,2]
[325208338,1714587054065,-151.0,0.00020986,2]
[325208339,1714587054074,-151.0,0.00020986,2]
[325208340,1714587054084,-289.406349,0.00020986,2]
[325208341,1714587054093,-8281.0154937,0.00020986,2]
[325208342,1714587054102,-289.406349,0.00020986,2]
[325208343,1714587054112,-30052.2069787,0.00020986,2]
[325208344,1714587054123,-11303.10058221,0.00021,2]
[325208345,1714587054135,-1231.76912544,0.00021,2]
[325208346,1714587054147,-5840.60021954,0.00021,2]
[325208347,1714587054187,-150.3,0.0001587,2]
[325208348,1714587054196,-4153.5242676,0.00021,2]
[325208349,1714587054883,-4161.54466651,0.00021,2]
[325208350,1714587054895,-2904.9,0.00021,2]
[325208351,1714587054906,-1164.324,0.00021,2]
[325208352,1714587055831,-150.3,0.0001587,2]
[325208353,1714587055841,-150.3,0.0001587,2]
[325208354,1714587055851,-150.3,0.0001699,2]
[325208355,1714587055860,-150.3,0.00017501,2]
[325208356,1714587055869,-150.3,0.00017549,2]
[325208357,1714587055879,-16.56384375,0.00017558,2]
[325208358,1714587055890,-133.73615625,0.00017558,2]
[325208359,1714587055900,-150.3,0.00017689,2]
[325208360,1714587055909,-150.3,0.00017858,2]
[325208361,1714587055918,-150.3,0.0001787,2]
[325208362,1714587055930,-150.3,0.0001787,2]
[325208363,1714587055939,-22.46222969,0.0001787,2]
[325208364,1714587055950,-127.83777031,0.0001787,2]
[325208365,1714587055959,-150.3,0.00018057,2]
[325208366,1714587055968,-41.19032916,0.00019168,2]
[325208367,1714587055992,-109.10967084,0.00019168,2]
[325208368,1714587056002,-1499.50623743,0.000209,2]
[325208369,1714587056013,-469.4677128,0.000209,2]
[325208370,1714587056023,-19240.2371387,0.00021,2]
[325208371,1714587056032,-1374.6204193,0.00021,2]
[325208372,1714587056042,-65315.67472917,0.00021,2]
[325208373,1714587056053,-129867.02111512,0.00021,2]
[325208374,1714587056064,-253.8102692,0.00021,2]
[325208375,1714587056076,-5794.98583877,0.00021,2]
[325208376,1714587056087,-266.8651973,0.00021,2]
[325208377,1714587056332,-64654.50452766,0.00021,2]
[325208378,1714587056369,-1308.14435,0.00021,2]
[325208379,1714587056380,-1418.946,0.00021,2]
[325208380,1714587056391,-1061.78116083,0.00021,2]
[325208381,1714587056406,-126409.54288106,0.00021,2]
[325208382,1714587056418,-6000.0,0.00021,2]
[325208383,1714587056433,-771.41124063,0.00021,2]
[325208384,1714587056445,-16913.54416816,0.00021,2]
[325208385,1714587056457,-14612.17071175,0.00021,2]
[325208386,1714587058043,1294.55623512,0.00011493,2]
[325208387,1714587127841,866.96244873,0.00011493,2]
[325208388,1714587141872,866.40184305,0.00011493,2]
[325208390,1714587207108,400.0,0.00024976,120]
[325208391,1714587672107,217.77,0.00010646,2]
[325208392,1714587780388,191.02,0.00010563,2]
[325208393,1714587784978,1266.1531912,0.00011602,2]
[325208394,1714587809117,329.93481833,0.000116,2]
[325208395,1714587855748,324.1129268,0.00011694,2]
[325208396,1714587861592,2323.51025179,0.00011694,2]
[325208397,1714587862513,155.76623754,0.00011694,2]
[325208398,1714587875493,4191.43432418,0.00011694,2]
[325208399,1714587879990,343.62835916,0.00011694,2]
[325208400,1714587882324,3416.05573349,0.00011694,2]
[325208401,1714587883542,192.90820693,0.00011694,2]
[325208402,1714587885773,954.01337786,0.00011694,2]
[325208403,1714587889279,533.53669043,0.00011694,2]
[325208404,1714587893181,3168.41548277,0.00011694,2]
[325208405,1714587894411,265.71436066,0.00011694,2]
[325208407,1714588154583,181.47,0.00010627,2]
[325208408,1714588154761,181.47,0.0001169,2]
[325208409,1714588163989,872.33307435,0.00011694,2]
[325208410,1714588168469,872.33307435,0.00011694,2]
[325208411,1714588204315,954.01337786,0.00011694,2]
[325208447,1714588231854,-3002.52973088,0.00011784,2]
[325208448,1714588231864,-872.33307435,0.00011785,2]
[325208449,1714588231874,-872.33307435,0.00011785,2]
[325208450,1714588231884,-1231.6318,0.00011787,2]
[325208451,1714588231893,-181.47,0.00012753,2]
[325208452,1714588231903,-500.0,0.00012886,2]
[325208453,1714588231912,-500.0,0.00012894,2]
[325208454,1714588231922,-1000.0,0.00012896,2]
[325208455,1714588231932,-500.0,0.00012896,2]
[325208456,1714588231943,-256.11,0.00012896,2]
[325208457,1714588231954,-500.0,0.00012903,2]
[325208458,1714588231965,-158.42,0.00012903,2]
[325208459,1714588231974,-150.99,0.00012903,2]
[325208460,1714588231983,-3533.81,0.00012903,2]
[325208461,1714588231992,-499.99,0.00012903,2]
[325208462,1714588232002,-500.0,0.00012912,2]
[325208463,1714588232011,-721.64,0.00012912,2]
[325208464,1714588232023,-500.0,0.00012921,2]
[325208465,1714588232032,-500.0,0.0001293,2]
[325208466,1714588232042,-500.0,0.00012938,2]
[325208468,1714588232051,-500.0,0.00012947,2]
[325208470,1714588232060,-500.0,0.00012956,2]
[325208472,1714588232070,-155.19116008,0.00012997,2]
[325208474,1714588232079,-2078.54985059,0.00012998,2]
[325208476,1714588232088,-1748.77005859,0.00013,2]
[325208478,1714588232098,-250.0,0.00013246,2]
[325208480,1714588232107,-200.0,0.00013268,2]
[325208482,1714588232116,-200.0,0.0001327,2]
[325208484,1714588232125,-2653.15,0.00013304,2]
[325208486,1714588232134,-1681.82,0.00013374,2]
[325208488,1714588232143,-1637.2,0.00013425,2]
[325208490,1714588232152,-527.81,0.00013475,2]
[325208492,1714588232162,-209.7,0.00013487,2]
[325208494,1714588232171,-527.81,0.00013512,2]
[325208495,1714588232180,-527.81,0.00013549,2]
[325208496,1714588232190,-527.81,0.00013586,2]
[325208497,1714588232199,-165.12,0.00013597,2]
[325208498,1714588232209,-527.81,0.00013623,2]
[325208499,1714588232219,-527.81,0.0001366,2]
[325208500,1714588232228,-527.81,0.00013696,2]
[325208501,1714588232238,-1000.0,0.00013699,2]
[325208502,1714588232248,-500.0,0.00013699,2]
[325208503,1714588232257,-200.0,0.00013699,2]
[325208504,1714588232266,-5350.95,0.00013699,2]
[325208505,1714588232280,-2751.0,0.00013699,2]
[325208506,1714588232298,-527.81,0.00013733,2]
[325208507,1714588232315,-527.81,0.0001377,2]
[325208508,1714588232330,-527.81,0.00013807,2]
[325208509,1714588232345,-181.47,0.00013815,2]
[325208510,1714588232363,-527.81,0.00013844,2]
[325208511,1714588232381,-527.81,0.00013881,2]
[325208513,1714588232397,-527.81,0.00013918,2]
[325208514,1714588232413,-669.0129911,0.00013931,2]
[325208515,1714588232430,-527.81,0.00013955,2]
[325208516,1714588232443,-527.81,0.00013992,2]
[325208517,1714588232456,-214.23880024,0.00014,2]
[325208518,1714588232472,-527.81,0.00014029,2]
[325208519,1714588232488,-527.81,0.00014066,2]
[325208520,1714588232505,-527.81,0.00014103,2]
[325208521,1714588232523,-527.81,0.0001414,2]
[325208522,1714588232534,-527.81,0.00014177,2]
[325208523,1714588232546,-181.47,0.00014878,2]
[325208524,1714588232563,-257.06252985,0.00015,2]
[325208525,1714588232576,-617.71050029,0.00015061,2]
[325208526,1714588232590,-300.0,0.00015068,2]
[325208527,1714588232605,-2100.0,0.00015272,2]
[325208528,1714588232618,-2292.0,0.00015368,2]
[325208529,1714588232631,-359.76881331,0.00015497,2]
[325208530,1714588232649,-323.992865,0.00015497,2]
[325208531,1714588232662,-155.65018808,0.00015497,2]
[325208532,1714588232676,-2322.71880393,0.00015497,2]
[325208533,1714588232691,-3396.08326174,0.00015497,2]
[325208534,1714588232708,-3414.73153901,0.00015497,2]
[325208535,1714588232721,-192.83258471,0.00015497,2]
[325208536,1714588232734,-343.49430824,0.00015497,2]
[325208537,1714588232748,-265.81739725,0.00015497,2]
[325208538,1714588232760,-968.2028248,0.00015498,2]
[325208539,1714588232778,-1310.71955182,0.00015498,2]
[325208540,1714588232792,-1785.0,0.00015499,2]
[325208541,1714588232805,-208.0,0.00015499,2]